[Event "*** Titled Tuesday Blitz"]
[Site "Chess.com"]
[Date "2020.04.14"]
[Round "1"]
[White "PchelkinVK"]
[Black "Gareth-Bale11"]
[Result "1-0"]
[WhiteElo "2467"]
[BlackElo "2806"]
[TimeControl "180+1"]
[EndTime "10:07:12 PDT"]
[Termination "PchelkinVK won by checkmate"]

1. d4 {[%clk 0:02:54.8]} 1... Nf6 {[%clk 0:02:59.4]} 2. Nc3 {[%clk 0:02:53.9]}
2... d5 {[%clk 0:02:58.2]} 3. Bf4 {[%clk 0:02:54.3]} 3... Bf5 {[%clk 0:02:57.8]}
4. Nf3 {[%clk 0:02:54.2]} 4... e6 {[%clk 0:02:54.4]} 5. e3 {[%clk 0:02:54.1]}
5... Bb4 {[%clk 0:02:52.8]} 6. Bd3 {[%clk 0:02:53.1]} 6... Ne4 {[%clk
0:02:49.4]} 7. Bxe4 {[%clk 0:02:51.1]} 7... Bxe4 {[%clk 0:02:46.7]} 8. O-O
{[%clk 0:02:51]} 8... Bf5 {[%clk 0:02:44.8]} 9. Ne2 {[%clk 0:02:34.8]} 9... Nd7
{[%clk 0:02:39.6]} 10. Rc1 {[%clk 0:02:32.4]} 10... Be7 {[%clk 0:02:32.5]} 11.
c4 {[%clk 0:02:31.1]} 11... c6 {[%clk 0:02:32.7]} 12. c5 {[%clk 0:02:27.4]}
12... O-O {[%clk 0:02:26.1]} 13. Nc3 {[%clk 0:02:15.5]} 13... b6 {[%clk
0:02:22.7]} 14. b4 {[%clk 0:02:14.6]} 14... a5 {[%clk 0:02:20.9]} 15. b5 {[%clk
0:02:07.8]} 15... Qc8 {[%clk 0:02:07.4]} 16. cxb6 {[%clk 0:01:32.4]} 16... Nxb6
{[%clk 0:02:00.4]} 17. Ne5 {[%clk 0:01:32.1]} 17... cxb5 {[%clk 0:01:35]} 18.
Nxb5 {[%clk 0:01:30.9]} 18... Nc4 {[%clk 0:01:32.5]} 19. Nxc4 {[%clk 0:01:28]}
19... dxc4 {[%clk 0:01:33.4]} 20. Bd6 {[%clk 0:01:26.8]} 20... Bxd6 {[%clk
0:01:02.6]} 21. Nxd6 {[%clk 0:01:26.1]} 21... Qc6 {[%clk 0:01:02.9]} 22. Nxf5
{[%clk 0:01:16.5]} 22... exf5 {[%clk 0:01:02.5]} 23. Qc2 {[%clk 0:01:16.9]}
23... f4 {[%clk 0:00:54.7]} 24. Qxc4 {[%clk 0:01:15.5]} 24... Qf6 {[%clk
0:00:53]} 25. Qc6 {[%clk 0:01:11.4]} 25... Qg5 {[%clk 0:00:49.7]} 26. Rc5 {[%clk
0:01:10.3]} 26... Qg4 {[%clk 0:00:47.3]} 27. Qe4 {[%clk 0:01:07.7]} 27... Rad8
{[%clk 0:00:47.2]} 28. Rf5 {[%clk 0:01:03]} 28... Rfe8 {[%clk 0:00:35.8]} 29.
Qxf4 {[%clk 0:01:02]} 29... Qg6 {[%clk 0:00:33.1]} 30. h4 {[%clk 0:00:56.8]}
30... Rc8 {[%clk 0:00:29.3]} 31. Rxa5 {[%clk 0:00:54.7]} 31... h6 {[%clk
0:00:26.3]} 32. Ra7 {[%clk 0:00:50]} 32... Rc2 {[%clk 0:00:25.4]} 33. a4 {[%clk
0:00:40.3]} 33... Re4 {[%clk 0:00:24.3]} 34. Qb8+ {[%clk 0:00:32.5]} 34... Kh7
{[%clk 0:00:24]} 35. Ra8 {[%clk 0:00:30.5]} 35... Qc6 {[%clk 0:00:18.5]} 36. h5
{[%clk 0:00:22.6]} 36... Rxe3 {[%clk 0:00:07]} 37. Qh8# {[%clk 0:00:20.2]} 1-0

[Event "*** Titled Tuesday Blitz"]
[Site "Chess.com"]
[Date "2020.04.14"]
[Round "1"]
[White "Zajdanek"]
[Black "giantslayer83"]
[Result "0-1"]
[WhiteElo "2376"]
[BlackElo "2723"]
[TimeControl "180+1"]
[EndTime "10:07:12 PDT"]
[Termination "giantslayer83 won by resignation"]

1. e4 {[%clk 0:03:00.5]} 1... e5 {[%clk 0:02:59.3]} 2. Nf3 {[%clk 0:03:00.3]}
2... Nc6 {[%clk 0:02:59.3]} 3. Bb5 {[%clk 0:02:59.9]} 3... a6 {[%clk 0:02:59.6]}
4. Bxc6 {[%clk 0:03:00.1]} 4... dxc6 {[%clk 0:02:59.2]} 5. Nc3 {[%clk 0:03:01]}
5... f6 {[%clk 0:02:57.5]} 6. d4 {[%clk 0:03:01.1]} 6... exd4 {[%clk 0:02:57.5]}
7. Nxd4 {[%clk 0:03:01.2]} 7... c5 {[%clk 0:02:57.7]} 8. Nde2 {[%clk 0:03:01.5]}
8... Qxd1+ {[%clk 0:02:58.3]} 9. Nxd1 {[%clk 0:03:02.4]} 9... Bd7 {[%clk
0:02:57]} 10. Bf4 {[%clk 0:03:02.3]} 10... O-O-O {[%clk 0:02:56.8]} 11. Ne3
{[%clk 0:03:02.4]} 11... Be6 {[%clk 0:02:43.8]} 12. b3 {[%clk 0:02:53.1]} 12...
Ne7 {[%clk 0:02:41.8]} 13. Rd1 {[%clk 0:02:48.9]} 13... Rxd1+ {[%clk 0:02:39]}
14. Kxd1 {[%clk 0:02:48.8]} 14... Nc6 {[%clk 0:02:34.7]} 15. f3 {[%clk
0:02:43.3]} 15... Bd6 {[%clk 0:02:24.5]} 16. Bxd6 {[%clk 0:02:42.5]} 16... Rd8
{[%clk 0:02:25.4]} 17. Kc1 {[%clk 0:02:33.7]} 17... Rxd6 {[%clk 0:02:25.3]} 18.
Rd1 {[%clk 0:02:33.7]} 18... Nd4 {[%clk 0:02:25.4]} 19. Nf4 {[%clk 0:02:18.1]}
19... Kd7 {[%clk 0:01:59.4]} 20. c3 {[%clk 0:02:15.7]} 20... Nb5 {[%clk
0:01:59]} 21. Rxd6+ {[%clk 0:02:09.8]} 21... cxd6 {[%clk 0:01:58.1]} 22. Kd2
{[%clk 0:02:07.4]} 22... Nc7 {[%clk 0:01:54.1]} 23. Nh5 {[%clk 0:02:01.4]} 23...
Ne8 {[%clk 0:01:53.7]} 24. g4 {[%clk 0:02:00.3]} 24... g6 {[%clk 0:01:50.5]} 25.
Nf4 {[%clk 0:01:58.8]} 25... Bf7 {[%clk 0:01:49.1]} 26. Nfd5 {[%clk 0:01:50]}
26... b5 {[%clk 0:01:42.4]} 27. h4 {[%clk 0:01:44.9]} 27... h6 {[%clk
0:01:37.7]} 28. c4 {[%clk 0:01:35.7]} 28... b4 {[%clk 0:01:27.6]} 29. f4 {[%clk
0:01:29.3]} 29... a5 {[%clk 0:01:27.3]} 30. Nf1 {[%clk 0:01:04.7]} 30... Bxd5
{[%clk 0:01:24.8]} 31. cxd5 {[%clk 0:00:58.7]} 31... f5 {[%clk 0:01:22]} 32.
exf5 {[%clk 0:00:57.7]} 32... gxf5 {[%clk 0:01:22.9]} 33. g5 {[%clk 0:00:58.2]}
33... hxg5 {[%clk 0:01:15.4]} 34. fxg5 {[%clk 0:00:48.9]} 34... Nc7 {[%clk
0:01:14.5]} 35. Ne3 {[%clk 0:00:31.3]} 35... f4 {[%clk 0:01:14.6]} 36. Nf5
{[%clk 0:00:31.7]} 36... Nxd5 {[%clk 0:01:14]} 37. h5 {[%clk 0:00:32.3]} 37...
Ne7 {[%clk 0:01:00.4]} 38. h6 {[%clk 0:00:23.9]} 38... Ng6 {[%clk 0:00:57.5]}
39. h7 {[%clk 0:00:20.4]} 39... Ke6 {[%clk 0:00:57.7]} 40. Nh4 {[%clk
0:00:17.5]} 40... Nh8 {[%clk 0:00:56.3]} 41. g6 {[%clk 0:00:16]} 41... Kf6
{[%clk 0:00:55.9]} 42. Kd3 {[%clk 0:00:15.9]} 42... d5 {[%clk 0:00:56.2]} 43.
Ke2 {[%clk 0:00:15.7]} 43... c4 {[%clk 0:00:56.1]} 44. bxc4 {[%clk 0:00:14.9]}
44... dxc4 {[%clk 0:00:56.1]} 45. Kd2 {[%clk 0:00:15.5]} 45... a4 {[%clk
0:00:54.5]} 46. Kc2 {[%clk 0:00:15.4]} 46... a3 {[%clk 0:00:55]} 47. Kd2 {[%clk
0:00:14.8]} 47... b3 {[%clk 0:00:55]} 48. axb3 {[%clk 0:00:13.8]} 48... a2
{[%clk 0:00:55.2]} 0-1

[Event "*** Titled Tuesday Blitz"]
[Site "Chess.com"]
[Date "2020.04.14"]
[Round "1"]
[White "josiwales"]
[Black "DonPreuss"]
[Result "1-0"]
[WhiteElo "2570"]
[BlackElo "2181"]
[TimeControl "180+1"]
[EndTime "10:07:12 PDT"]
[Termination "josiwales won on time"]

1. e4 {[%clk 0:03:00.9]} 1... Nc6 {[%clk 0:02:48.1]} 2. Nf3 {[%clk 0:02:58.1]}
2... e5 {[%clk 0:02:48]} 3. Bc4 {[%clk 0:02:57.5]} 3... Bc5 {[%clk 0:02:48.4]}
4. O-O {[%clk 0:02:57.7]} 4... d6 {[%clk 0:02:48.6]} 5. c3 {[%clk 0:02:57.1]}
5... Bg4 {[%clk 0:02:35.6]} 6. Re1 {[%clk 0:02:50.7]} 6... Na5 {[%clk
0:02:04.2]} 7. Bf1 {[%clk 0:02:13.4]} 7... Ne7 {[%clk 0:02:01.5]} 8. b4 {[%clk
0:01:58.4]} 8... Bxf2+ {[%clk 0:01:45.3]} 9. Kxf2 {[%clk 0:01:56.5]} 9... Nac6
{[%clk 0:01:46.2]} 10. d3 {[%clk 0:01:48.5]} 10... O-O {[%clk 0:01:46.1]} 11. h3
{[%clk 0:01:45.2]} 11... Bxf3 {[%clk 0:01:35.4]} 12. Qxf3 {[%clk 0:01:38.1]}
12... f5 {[%clk 0:01:36.3]} 13. Kg1 {[%clk 0:01:37.9]} 13... f4 {[%clk
0:01:34.6]} 14. b5 {[%clk 0:01:32.3]} 14... Nb8 {[%clk 0:01:27.2]} 15. d4 {[%clk
0:01:32.3]} 15... Nd7 {[%clk 0:01:26.4]} 16. Bc4+ {[%clk 0:01:30.5]} 16... Kh8
{[%clk 0:01:25.6]} 17. Ba3 {[%clk 0:01:18.6]} 17... Ng6 {[%clk 0:01:23.7]} 18.
Nd2 {[%clk 0:01:17.5]} 18... Qg5 {[%clk 0:01:06.4]} 19. Qf2 {[%clk 0:01:17.4]}
19... Rf6 {[%clk 0:00:39.6]} 20. Nf3 {[%clk 0:01:08.8]} 20... Qh5 {[%clk
0:00:38.1]} 21. Rad1 {[%clk 0:01:09.2]} 21... Raf8 {[%clk 0:00:35.7]} 22. Bb4
{[%clk 0:00:45.9]} 22... h6 {[%clk 0:00:31.7]} 23. a4 {[%clk 0:00:43.5]} 23...
Kh7 {[%clk 0:00:29.6]} 24. a5 {[%clk 0:00:44]} 24... Nh8 {[%clk 0:00:25.5]} 25.
dxe5 {[%clk 0:00:42.3]} 25... Nxe5 {[%clk 0:00:25]} 26. Rd5 {[%clk 0:00:37.7]}
26... Nhg6 {[%clk 0:00:20.5]} 27. Be2 {[%clk 0:00:33.1]} 27... Ne7 {[%clk
0:00:14.8]} 28. Nxe5 {[%clk 0:00:30.2]} 28... Qg5 {[%clk 0:00:12.3]} 29. Ng4
{[%clk 0:00:27.4]} 29... Qg6 {[%clk 0:00:10.5]} 30. Nxf6+ {[%clk 0:00:25.8]}
30... Qxf6 {[%clk 0:00:10.6]} 31. Bd3 {[%clk 0:00:24.5]} 31... Kh8 {[%clk
0:00:08.8]} 32. e5 {[%clk 0:00:22.5]} 32... Qf7 {[%clk 0:00:07.8]} 33. e6 {[%clk
0:00:20.4]} 33... Qf6 {[%clk 0:00:07.1]} 34. Rd4 {[%clk 0:00:20.2]} 34... Qg5
{[%clk 0:00:06.7]} 35. Rf1 {[%clk 0:00:19.8]} 35... Ng6 {[%clk 0:00:03.1]} 36.
Bxg6 {[%clk 0:00:18.9]} 36... Qxg6 {[%clk 0:00:04]} 37. Rxf4 {[%clk 0:00:19.3]}
37... Rxf4 {[%clk 0:00:04]} 38. Qxf4 {[%clk 0:00:20.2]} 38... Qxe6 {[%clk
0:00:04.6]} 39. Qf8+ {[%clk 0:00:20.3]} 1-0

[Event "*** Titled Tuesday Blitz"]
[Site "Chess.com"]
[Date "2020.04.14"]
[Round "1"]
[White "Ave_Mariia"]
[Black "Mourinho_Jose"]
[Result "1-0"]
[WhiteElo "2322"]
[BlackElo "2632"]
[TimeControl "180+1"]
[EndTime "10:07:13 PDT"]
[Termination "Ave_Mariia won by resignation"]

1. d4 {[%clk 0:03:00.9]} 1... d5 {[%clk 0:02:59.7]} 2. c4 {[%clk 0:03:00.2]}
2... e6 {[%clk 0:02:59.4]} 3. Nf3 {[%clk 0:03:00.7]} 3... Nf6 {[%clk 0:02:59.3]}
4. g3 {[%clk 0:03:00]} 4... dxc4 {[%clk 0:02:59.1]} 5. Bg2 {[%clk 0:02:59.5]}
5... Nc6 {[%clk 0:02:59.4]} 6. Qa4 {[%clk 0:02:54.3]} 6... Bb4+ {[%clk
0:02:58.8]} 7. Bd2 {[%clk 0:02:54.6]} 7... Bd6 {[%clk 0:02:59.7]} 8. O-O {[%clk
0:02:44.4]} 8... O-O {[%clk 0:02:59.5]} 9. Qxc4 {[%clk 0:02:43.8]} 9... e5
{[%clk 0:02:59.8]} 10. d5 {[%clk 0:02:33.5]} 10... Ne7 {[%clk 0:02:58.9]} 11. e4
{[%clk 0:02:32.9]} 11... a6 {[%clk 0:02:58.8]} 12. a4 {[%clk 0:02:32.1]} 12...
Bd7 {[%clk 0:02:58.4]} 13. Nc3 {[%clk 0:02:30]} 13... Ne8 {[%clk 0:02:55.1]} 14.
Rfe1 {[%clk 0:02:19]} 14... h6 {[%clk 0:02:52.3]} 15. Rac1 {[%clk 0:02:08]}
15... Rb8 {[%clk 0:02:47.9]} 16. a5 {[%clk 0:02:07.5]} 16... Ng6 {[%clk
0:02:39.1]} 17. Na4 {[%clk 0:01:58.7]} 17... Qe7 {[%clk 0:02:34.5]} 18. Nc5
{[%clk 0:01:57.1]} 18... Bb5 {[%clk 0:02:32.7]} 19. Qc2 {[%clk 0:01:52.9]} 19...
Nf6 {[%clk 0:02:15.5]} 20. Bf1 {[%clk 0:01:50.7]} 20... Bxf1 {[%clk 0:02:07.7]}
21. Kxf1 {[%clk 0:01:51]} 21... Nd7 {[%clk 0:02:08.6]} 22. b4 {[%clk 0:01:48.9]}
22... Qe8 {[%clk 0:01:58.2]} 23. Be3 {[%clk 0:01:46.7]} 23... Ne7 {[%clk
0:01:56.9]} 24. Nd2 {[%clk 0:01:45.5]} 24... f5 {[%clk 0:01:54.9]} 25. Ne6
{[%clk 0:01:40.6]} 25... f4 {[%clk 0:01:47.2]} 26. Bc5 {[%clk 0:01:31.3]} 26...
Qh5 {[%clk 0:01:38.1]} 27. Kg1 {[%clk 0:01:25]} 27... fxg3 {[%clk 0:01:19.7]}
28. hxg3 {[%clk 0:01:24.1]} 28... Rf6 {[%clk 0:01:05.5]} 29. Bxd6 {[%clk
0:01:18.1]} 29... cxd6 {[%clk 0:01:05.6]} 30. Qc7 {[%clk 0:01:17.5]} 30... Qe8
{[%clk 0:00:53.5]} 31. Qxd6 {[%clk 0:01:09.4]} 31... Ng6 {[%clk 0:00:50.1]} 32.
Rc7 {[%clk 0:01:07]} 32... Ngf8 {[%clk 0:00:49]} 33. Nc4 {[%clk 0:00:56.2]}
33... Rc8 {[%clk 0:00:44.1]} 34. Nxe5 {[%clk 0:00:43]} 34... Rxc7 {[%clk
0:00:37.4]} 35. Qxc7 {[%clk 0:00:42.7]} 35... Nxe6 {[%clk 0:00:20.6]} 36. Qxd7
{[%clk 0:00:40.3]} 36... Qb8 {[%clk 0:00:06.1]} 37. Ng4 {[%clk 0:00:32.9]} 37...
Rg6 {[%clk 0:00:04.7]} 38. dxe6 {[%clk 0:00:31.9]} 38... Rxg4 {[%clk 0:00:05]}
39. e7 {[%clk 0:00:31.6]} 39... Rxg3+ {[%clk 0:00:05.4]} 40. Kf1 {[%clk
0:00:30.4]} 1-0

[Event "*** Titled Tuesday Blitz"]
[Site "Chess.com"]
[Date "2020.04.14"]
[Round "1"]
[White "Dynamikus"]
[Black "cukus"]
[Result "1-0"]
[WhiteElo "2747"]
[BlackElo "2389"]
[TimeControl "180+1"]
[EndTime "10:07:14 PDT"]
[Termination "Dynamikus won by checkmate"]

1. Nf3 {[%clk 0:02:54.3]} 1... c5 {[%clk 0:02:54.2]} 2. c4 {[%clk 0:02:55.2]}
2... Nf6 {[%clk 0:02:49.9]} 3. d4 {[%clk 0:02:56.1]} 3... cxd4 {[%clk
0:02:49.6]} 4. Nxd4 {[%clk 0:02:57]} 4... Nc6 {[%clk 0:02:49.4]} 5. Nc3 {[%clk
0:02:57]} 5... e6 {[%clk 0:02:49.1]} 6. a3 {[%clk 0:02:57.3]} 6... Bc5 {[%clk
0:02:46.2]} 7. Nb3 {[%clk 0:02:57.3]} 7... Be7 {[%clk 0:02:45.9]} 8. e4 {[%clk
0:02:54.5]} 8... b6 {[%clk 0:02:42.3]} 9. Be2 {[%clk 0:02:54.1]} 9... Bb7 {[%clk
0:02:41.8]} 10. O-O {[%clk 0:02:54.4]} 10... O-O {[%clk 0:02:40.5]} 11. Be3
{[%clk 0:02:53.2]} 11... Rc8 {[%clk 0:02:21.7]} 12. f4 {[%clk 0:02:39.8]} 12...
d6 {[%clk 0:02:07]} 13. Bf3 {[%clk 0:02:39.5]} 13... Qc7 {[%clk 0:02:05.1]} 14.
Rc1 {[%clk 0:02:35.8]} 14... Qb8 {[%clk 0:01:58.4]} 15. Qe2 {[%clk 0:02:23.4]}
15... Rfd8 {[%clk 0:01:53.5]} 16. g4 {[%clk 0:02:17.7]} 16... Bf8 {[%clk
0:01:49.4]} 17. g5 {[%clk 0:02:17.3]} 17... Nd7 {[%clk 0:01:41]} 18. h4 {[%clk
0:02:11.6]} 18... Ne7 {[%clk 0:01:34.1]} 19. h5 {[%clk 0:02:06.8]} 19... d5
{[%clk 0:01:27.4]} 20. cxd5 {[%clk 0:02:01]} 20... exd5 {[%clk 0:01:26.4]} 21.
exd5 {[%clk 0:01:51.2]} 21... Nf5 {[%clk 0:01:20.5]} 22. g6 {[%clk 0:01:51]}
22... Nc5 {[%clk 0:00:58.1]} 23. gxf7+ {[%clk 0:01:47.8]} 23... Kh8 {[%clk
0:00:55.6]} 24. Bxc5 {[%clk 0:01:36.2]} 24... bxc5 {[%clk 0:00:50.7]} 25. Qe5
{[%clk 0:01:22.6]} 25... Nd4 {[%clk 0:00:44.1]} 26. Nxd4 {[%clk 0:00:48.1]}
26... cxd4 {[%clk 0:00:43.1]} 27. Nb5 {[%clk 0:00:48.6]} 27... Bxd5 {[%clk
0:00:31.5]} 28. Rxc8 {[%clk 0:00:34.3]} 28... Qxc8 {[%clk 0:00:30.7]} 29. Bxd5
{[%clk 0:00:32.8]} 29... d3 {[%clk 0:00:25]} 30. Nc3 {[%clk 0:00:25]} 30... d2
{[%clk 0:00:23.2]} 31. Bf3 {[%clk 0:00:20.5]} 31... Bc5+ {[%clk 0:00:17.5]} 32.
Kg2 {[%clk 0:00:20.3]} 32... Bd4 {[%clk 0:00:16.2]} 33. Qe7 {[%clk 0:00:15.2]}
33... Bxc3 {[%clk 0:00:13.1]} 34. bxc3 {[%clk 0:00:16.1]} 34... Rf8 {[%clk
0:00:08.9]} 35. h6 {[%clk 0:00:15]} 35... gxh6 {[%clk 0:00:07.8]} 36. Qf6#
{[%clk 0:00:14.2]} 1-0

[Event "*** Titled Tuesday Blitz"]
[Site "Chess.com"]
[Date "2020.04.14"]
[Round "1"]
[White "Imre91"]
[Black "Siemba"]
[Result "1/2-1/2"]
[WhiteElo "2589"]
[BlackElo "2233"]
[TimeControl "180+1"]
[EndTime "10:07:14 PDT"]
[Termination "Game drawn by repetition"]

1. e4 {[%clk 0:03:00.9]} 1... c5 {[%clk 0:02:57]} 2. Nf3 {[%clk 0:03:00.1]} 2...
Nc6 {[%clk 0:02:53.4]} 3. Bb5 {[%clk 0:02:59.3]} 3... g6 {[%clk 0:02:52.1]} 4.
O-O {[%clk 0:02:58.1]} 4... Bg7 {[%clk 0:02:52]} 5. Re1 {[%clk 0:02:57.6]} 5...
e5 {[%clk 0:02:50.8]} 6. Bxc6 {[%clk 0:02:55.7]} 6... bxc6 {[%clk 0:02:50.8]} 7.
d3 {[%clk 0:02:55.6]} 7... d6 {[%clk 0:02:49.3]} 8. a3 {[%clk 0:02:55.3]} 8...
Ne7 {[%clk 0:02:49.6]} 9. b4 {[%clk 0:02:54.3]} 9... cxb4 {[%clk 0:02:44.3]} 10.
axb4 {[%clk 0:02:55.2]} 10... O-O {[%clk 0:02:44.4]} 11. Nc3 {[%clk 0:02:54.9]}
11... Rb8 {[%clk 0:02:39]} 12. Rxa7 {[%clk 0:02:49.5]} 12... Rxb4 {[%clk
0:02:37.1]} 13. Bg5 {[%clk 0:02:48.2]} 13... Rb7 {[%clk 0:02:31.6]} 14. Qa1
{[%clk 0:02:46.7]} 14... h6 {[%clk 0:02:27.7]} 15. Rxb7 {[%clk 0:02:41.4]} 15...
Bxb7 {[%clk 0:02:26.3]} 16. Rb1 {[%clk 0:02:41.3]} 16... Bc8 {[%clk 0:02:08.9]}
17. Be3 {[%clk 0:02:35.4]} 17... f5 {[%clk 0:01:53.7]} 18. Qa3 {[%clk
0:02:14.8]} 18... Kh7 {[%clk 0:01:20.3]} 19. Nd2 {[%clk 0:02:10.5]} 19... f4
{[%clk 0:01:17.2]} 20. Bb6 {[%clk 0:02:09.3]} 20... Qd7 {[%clk 0:01:17]} 21. f3
{[%clk 0:02:06.7]} 21... c5 {[%clk 0:01:15.7]} 22. Nd5 {[%clk 0:01:49.2]} 22...
Nxd5 {[%clk 0:01:09]} 23. exd5 {[%clk 0:01:48.5]} 23... g5 {[%clk 0:01:07.6]}
24. h3 {[%clk 0:01:44.1]} 24... Qf7 {[%clk 0:01:05.5]} 25. c4 {[%clk 0:01:36.2]}
25... Bf5 {[%clk 0:01:05.1]} 26. Ne4 {[%clk 0:01:29.5]} 26... Bxe4 {[%clk
0:00:53.7]} 27. dxe4 {[%clk 0:01:29.1]} 27... h5 {[%clk 0:00:53.6]} 28. Qd3
{[%clk 0:01:26.4]} 28... Rb8 {[%clk 0:00:46.3]} 29. Ba5 {[%clk 0:01:25.4]} 29...
Qa7 {[%clk 0:00:38.9]} 30. Rxb8 {[%clk 0:01:24.1]} 30... Qxb8 {[%clk 0:00:38]}
31. Qc2 {[%clk 0:01:23.3]} 31... Kg6 {[%clk 0:00:31.6]} 32. Kf2 {[%clk
0:01:22.6]} 32... g4 {[%clk 0:00:26.1]} 33. hxg4 {[%clk 0:01:22.1]} 33... hxg4
{[%clk 0:00:26.3]} 34. fxg4 {[%clk 0:01:21.3]} 34... Kg5 {[%clk 0:00:19.6]} 35.
Bc3 {[%clk 0:01:12.1]} 35... Qc8 {[%clk 0:00:17.9]} 36. Qd1 {[%clk 0:01:10]}
36... Qxg4 {[%clk 0:00:17.4]} 37. Qxg4+ {[%clk 0:01:09.7]} 37... Kxg4 {[%clk
0:00:18.3]} 38. Ba5 {[%clk 0:01:10]} 38... Bf6 {[%clk 0:00:15.9]} 39. Bc7 {[%clk
0:01:09.6]} 39... Be7 {[%clk 0:00:15.7]} 40. Bb8 {[%clk 0:01:08.1]} 40... Bh4+
{[%clk 0:00:15]} 41. Kf1 {[%clk 0:01:07.4]} 41... Be7 {[%clk 0:00:11.2]} 42. Kf2
{[%clk 0:01:03.4]} 42... Bh4+ {[%clk 0:00:09.2]} 43. Kg1 {[%clk 0:00:55.5]}
43... Be7 {[%clk 0:00:08.5]} 44. Kf2 {[%clk 0:00:38.6]} 1/2-1/2

[Event "*** Titled Tuesday Blitz"]
[Site "Chess.com"]
[Date "2020.04.14"]
[Round "1"]
[White "bait_or_mate"]
[Black "GreatOwl02"]
[Result "1-0"]
[WhiteElo "2591"]
[BlackElo "2217"]
[TimeControl "180+1"]
[EndTime "10:07:15 PDT"]
[Termination "bait_or_mate won by checkmate"]

1. d4 {[%clk 0:03:00.9]} 1... Nf6 {[%clk 0:02:56.6]} 2. c4 {[%clk 0:03:01]} 2...
e6 {[%clk 0:02:56.9]} 3. Nf3 {[%clk 0:03:00.7]} 3... d5 {[%clk 0:02:56.7]} 4. g3
{[%clk 0:03:00.6]} 4... dxc4 {[%clk 0:02:54.3]} 5. Bg2 {[%clk 0:03:00.8]} 5...
Nc6 {[%clk 0:02:51.9]} 6. O-O {[%clk 0:03:00.3]} 6... Rb8 {[%clk 0:02:43.2]} 7.
e3 {[%clk 0:02:53.1]} 7... b5 {[%clk 0:02:39.9]} 8. Qe2 {[%clk 0:02:51.3]} 8...
Be7 {[%clk 0:01:48.7]} 9. Rd1 {[%clk 0:02:49.6]} 9... O-O {[%clk 0:01:48.5]} 10.
Ne5 {[%clk 0:02:47.8]} 10... Nxe5 {[%clk 0:01:32.8]} 11. dxe5 {[%clk 0:02:48.7]}
11... Nd7 {[%clk 0:01:33.3]} 12. a4 {[%clk 0:02:41]} 12... a6 {[%clk 0:01:28.6]}
13. Bc6 {[%clk 0:02:30.4]} 13... Rb6 {[%clk 0:01:19.8]} 14. Be4 {[%clk 0:02:19]}
14... Bb7 {[%clk 0:00:58.5]} 15. Nc3 {[%clk 0:02:06.3]} 15... Bxe4 {[%clk
0:00:55.3]} 16. Nxe4 {[%clk 0:02:07.2]} 16... Qc8 {[%clk 0:00:53.2]} 17. axb5
{[%clk 0:02:04.3]} 17... axb5 {[%clk 0:00:53]} 18. f4 {[%clk 0:02:04.2]} 18...
Nc5 {[%clk 0:00:51.7]} 19. Nxc5 {[%clk 0:01:57.6]} 19... Bxc5 {[%clk 0:00:51.9]}
20. Kg2 {[%clk 0:01:57.9]} 20... Qb7+ {[%clk 0:00:50.8]} 21. e4 {[%clk 0:01:55]}
21... h6 {[%clk 0:00:46.5]} 22. Bd2 {[%clk 0:01:48.8]} 22... Ra8 {[%clk
0:00:45.6]} 23. Rxa8+ {[%clk 0:01:44.4]} 23... Qxa8 {[%clk 0:00:45.5]} 24. Be1
{[%clk 0:01:44.7]} 24... Ra6 {[%clk 0:00:44.8]} 25. g4 {[%clk 0:01:36.3]} 25...
Ra2 {[%clk 0:00:42.2]} 26. f5 {[%clk 0:01:28.4]} 26... exf5 {[%clk 0:00:41.3]}
27. gxf5 {[%clk 0:01:27.4]} 27... Qc6 {[%clk 0:00:39.3]} 28. Rd5 {[%clk
0:01:05.5]} 28... Ba3 {[%clk 0:00:33.4]} 29. Rd2 {[%clk 0:00:55.6]} 29... Bc5
{[%clk 0:00:26.8]} 30. Qg4 {[%clk 0:00:41.3]} 30... Kh7 {[%clk 0:00:24.7]} 31.
f6 {[%clk 0:00:38.8]} 31... g6 {[%clk 0:00:16.6]} 32. Rd7 {[%clk 0:00:38.6]}
32... Kg8 {[%clk 0:00:15.5]} 33. Rd8+ {[%clk 0:00:34.4]} 33... Kh7 {[%clk
0:00:15.4]} 34. Bc3 {[%clk 0:00:32.7]} 34... b4 {[%clk 0:00:14.7]} 35. Rd7
{[%clk 0:00:24.1]} 35... Kg8 {[%clk 0:00:13.4]} 36. Rd8+ {[%clk 0:00:22.4]}
36... Kh7 {[%clk 0:00:13.8]} 37. Qf4 {[%clk 0:00:17.5]} 37... bxc3 {[%clk
0:00:12.5]} 38. Rh8+ {[%clk 0:00:16.3]} 38... Kxh8 {[%clk 0:00:12.5]} 39. Qxh6+
{[%clk 0:00:17.2]} 39... Kg8 {[%clk 0:00:13.2]} 40. Qg7# {[%clk 0:00:18.1]} 1-0

[Event "*** Titled Tuesday Blitz"]
[Site "Chess.com"]
[Date "2020.04.14"]
[Round "1"]
[White "GusKan67"]
[Black "Kiborg95"]
[Result "0-1"]
[WhiteElo "2415"]
[BlackElo "2787"]
[TimeControl "180+1"]
[EndTime "10:07:17 PDT"]
[Termination "Kiborg95 won on time"]

1. d4 {[%clk 0:03:00.9]} 1... d6 {[%clk 0:02:56.7]} 2. Nf3 {[%clk 0:02:59.7]}
2... g6 {[%clk 0:02:56.6]} 3. c4 {[%clk 0:02:59.3]} 3... Bg7 {[%clk 0:02:57]} 4.
Nc3 {[%clk 0:02:58.7]} 4... Nd7 {[%clk 0:02:57.7]} 5. e4 {[%clk 0:02:58.5]} 5...
e5 {[%clk 0:02:58.1]} 6. d5 {[%clk 0:02:51]} 6... a5 {[%clk 0:02:56.5]} 7. Bg5
{[%clk 0:02:45.5]} 7... f6 {[%clk 0:02:56.5]} 8. Be3 {[%clk 0:02:45]} 8... Nh6
{[%clk 0:02:54.7]} 9. h4 {[%clk 0:02:43.2]} 9... O-O {[%clk 0:02:50.6]} 10. h5
{[%clk 0:02:41.7]} 10... g5 {[%clk 0:02:50.8]} 11. Nd2 {[%clk 0:02:40.9]} 11...
f5 {[%clk 0:02:49.4]} 12. exf5 {[%clk 0:02:34.7]} 12... Nxf5 {[%clk 0:02:50.3]}
13. Nde4 {[%clk 0:02:35.3]} 13... h6 {[%clk 0:02:40.6]} 14. Be2 {[%clk
0:02:28.9]} 14... b6 {[%clk 0:02:18.3]} 15. Bg4 {[%clk 0:02:10.5]} 15... Nc5
{[%clk 0:02:18.4]} 16. Nxc5 {[%clk 0:01:49.7]} 16... bxc5 {[%clk 0:02:19.3]} 17.
Ne4 {[%clk 0:01:48.9]} 17... a4 {[%clk 0:02:11.9]} 18. Be2 {[%clk 0:01:30.3]}
18... Nd4 {[%clk 0:01:43.9]} 19. Bd3 {[%clk 0:00:59.7]} 19... Bf5 {[%clk
0:01:34.1]} 20. Ng3 {[%clk 0:00:41]} 20... Bd7 {[%clk 0:01:26.1]} 21. Qd2 {[%clk
0:00:26.3]} 21... Qe7 {[%clk 0:00:57.6]} 22. O-O-O {[%clk 0:00:25.5]} 22... Rab8
{[%clk 0:00:52.7]} 23. Bxd4 {[%clk 0:00:21.4]} 23... cxd4 {[%clk 0:00:49]} 24.
Be4 {[%clk 0:00:15.1]} 24... Rb6 {[%clk 0:00:34.9]} 25. Kc2 {[%clk 0:00:08.6]}
25... Rfb8 {[%clk 0:00:33.3]} 26. Rb1 {[%clk 0:00:09]} 26... Qf8 {[%clk
0:00:31.4]} 27. f3 {[%clk 0:00:09.1]} 27... Qc8 {[%clk 0:00:29.3]} 28. Qd3
{[%clk 0:00:08.4]} 28... Rb4 {[%clk 0:00:27.7]} 29. Kd2 {[%clk 0:00:04.9]} 29...
Rxb2+ {[%clk 0:00:26.5]} 30. Rxb2 {[%clk 0:00:04.6]} 30... Rxb2+ {[%clk
0:00:27.4]} 31. Kc1 {[%clk 0:00:04.5]} 31... Rxa2 {[%clk 0:00:26.8]} 32. Kb1
{[%clk 0:00:02.6]} 32... Rxg2 {[%clk 0:00:22.7]} 33. Ka1 {[%clk 0:00:03]} 33...
Rxg3 {[%clk 0:00:22.4]} 34. Bh7+ {[%clk 0:00:02.2]} 34... Kh8 {[%clk 0:00:22.2]}
35. Bg6 {[%clk 0:00:02.4]} 35... Rg2 {[%clk 0:00:18.5]} 36. Bf7 {[%clk
0:00:02.1]} 36... Bf5 {[%clk 0:00:18]} 0-1